[Event "*** Titled Tuesday Blitz"]
[Site "Chess.com"]
[Date "2019.03.05"]
[Round "10"]
[White "STAYFlow"]
[Black "XiaoKangZhong"]
[Result "1-0"]
[WhiteElo "2229"]
[BlackElo "2093"]
[TimeControl "180+2"]
[EndTime "15:31:15 PST"]
[Termination "STAYFlow won by resignation"]

1. d4 {[%clk 0:03:01.9]} 1... f5 {[%clk 0:02:59.5]} 2. g3 {[%clk 0:03:01.5]}
2... Nf6 {[%clk 0:03:00]} 3. Bg2 {[%clk 0:03:02.2]} 3... e6 {[%clk 0:03:00.8]}
4. Nf3 {[%clk 0:03:03.1]} 4... d5 {[%clk 0:03:00.9]} 5. O-O {[%clk 0:03:02]}
5... c5 {[%clk 0:03:01.9]} 6. c4 {[%clk 0:03:01.2]} 6... Nc6 {[%clk 0:02:59.6]}
7. Nc3 {[%clk 0:03:01.9]} 7... dxc4 {[%clk 0:02:57.8]} 8. Qa4 {[%clk 0:02:49.4]}
8... Ne4 {[%clk 0:02:12.1]} 9. Nxe4 {[%clk 0:02:42.7]} 9... fxe4 {[%clk
0:02:11.6]} 10. Ne5 {[%clk 0:02:44.1]} 10... Bd7 {[%clk 0:01:57.6]} 11. Nxd7
{[%clk 0:02:28.3]} 11... Qxd7 {[%clk 0:01:56.1]} 12. dxc5 {[%clk 0:02:17.3]}
12... Bxc5 {[%clk 0:01:49.6]} 13. Qxc4 {[%clk 0:02:17.6]} 13... Qd5 {[%clk
0:01:46.4]} 14. Qxe4 {[%clk 0:02:16.2]} 14... Qxe4 {[%clk 0:01:45.9]} 15. Bxe4
{[%clk 0:02:18.1]} 15... O-O-O {[%clk 0:01:42.6]} 16. Bg5 {[%clk 0:02:09]} 16...
Rd4 {[%clk 0:01:36.7]} 17. Bxc6 {[%clk 0:01:32.9]} 17... bxc6 {[%clk 0:01:34.2]}
18. Rac1 {[%clk 0:01:34]} 18... Rd5 {[%clk 0:01:33.4]} 19. Bf4 {[%clk
0:01:20.7]} 19... Rf8 {[%clk 0:01:05.5]} 20. e4 {[%clk 0:01:13.3]} 20... Rh5
{[%clk 0:01:04.8]} 21. Rxc5 {[%clk 0:01:08.3]} 21... Rxc5 {[%clk 0:01:00.3]} 22.
Bd6 {[%clk 0:01:09.8]} 22... Rc2 {[%clk 0:00:48.6]} 23. Bxf8 {[%clk 0:01:11.3]}
23... Rxb2 {[%clk 0:00:50]} 24. a3 {[%clk 0:01:12.9]} 24... g6 {[%clk
0:00:48.5]} 25. Rd1 {[%clk 0:01:07.1]} 25... Re2 {[%clk 0:00:44.8]} 26. f3
{[%clk 0:01:03.2]} 26... Kc7 {[%clk 0:00:41.1]} 27. Rd6 {[%clk 0:00:51.4]} 27...
e5 {[%clk 0:00:39.1]} 28. Rd3 {[%clk 0:00:47]} 28... Rc2 {[%clk 0:00:36.2]} 29.
Bd6+ {[%clk 0:00:48.1]} 29... Kb6 {[%clk 0:00:35.9]} 30. Bxe5 {[%clk 0:00:50]}
30... c5 {[%clk 0:00:37.5]} 31. Bd6 {[%clk 0:00:44.3]} 31... c4 {[%clk
0:00:36.4]} 32. Rd1 {[%clk 0:00:37.1]} 32... Kc6 {[%clk 0:00:32]} 33. Bb4 {[%clk
0:00:36.6]} 33... Kb5 {[%clk 0:00:31]} 34. e5 {[%clk 0:00:36.7]} 34... Re2
{[%clk 0:00:31.3]} 35. Kf1 {[%clk 0:00:36.2]} 35... Rxe5 {[%clk 0:00:31.2]} 36.
Rd7 {[%clk 0:00:32.7]} 36... a5 {[%clk 0:00:31.2]} 37. Bc3 {[%clk 0:00:32]}
37... Re3 {[%clk 0:00:27.9]} 38. Bd2 {[%clk 0:00:28.4]} 38... Rxa3 {[%clk
0:00:26.9]} 39. Rd5+ {[%clk 0:00:24.6]} 39... Kb6 {[%clk 0:00:22.9]} 40. Ke2
{[%clk 0:00:24.3]} 40... a4 {[%clk 0:00:21.4]} 41. Be3+ {[%clk 0:00:22.8]} 41...
Kb7 {[%clk 0:00:18.3]} 42. Rc5 {[%clk 0:00:21.4]} 42... c3 {[%clk 0:00:19.3]}
43. Kd1 {[%clk 0:00:20.1]} 43... Ra1+ {[%clk 0:00:19.6]} 44. Kc2 {[%clk
0:00:20.7]} 44... Ra2+ {[%clk 0:00:21.3]} 45. Kxc3 {[%clk 0:00:21.3]} 45... Rxh2
{[%clk 0:00:23]} 46. Ra5 {[%clk 0:00:21.3]} 46... Rg2 {[%clk 0:00:23.4]} 47. Bf4
{[%clk 0:00:22.1]} 47... Rf2 {[%clk 0:00:23.8]} 48. Rxa4 {[%clk 0:00:21.5]}
48... Rxf3+ {[%clk 0:00:24.6]} 49. Kd4 {[%clk 0:00:22.5]} 49... g5 {[%clk
0:00:24.2]} 50. Rb4+ {[%clk 0:00:23.5]} 50... Kc6 {[%clk 0:00:24.5]} 51. Be5
{[%clk 0:00:21.8]} 51... h5 {[%clk 0:00:23.6]} 52. Ke4 {[%clk 0:00:22.9]} 52...
Rf1 {[%clk 0:00:24.1]} 53. Rc4+ {[%clk 0:00:21.2]} 53... Kb5 {[%clk 0:00:24.6]}
54. Rc7 {[%clk 0:00:20.9]} 54... h4 {[%clk 0:00:25.2]} 55. g4 {[%clk 0:00:15.9]}
55... Rg1 {[%clk 0:00:26]} 56. Kf5 {[%clk 0:00:16.2]} 56... Re1 {[%clk
0:00:24.4]} 57. Rh7 {[%clk 0:00:12.7]} 57... Re3 {[%clk 0:00:21]} 58. Bf6 {[%clk
0:00:13.9]} 58... h3 {[%clk 0:00:22.3]} 59. Kxg5 {[%clk 0:00:14]} 59... Rg3
{[%clk 0:00:22.6]} 60. Kf4 {[%clk 0:00:15]} 60... Ra3 {[%clk 0:00:22.8]} 61. g5
{[%clk 0:00:16.1]} 61... Kc6 {[%clk 0:00:24.4]} 62. Kg4 {[%clk 0:00:13.9]} 62...
Kd6 {[%clk 0:00:24.6]} 63. Rxh3 {[%clk 0:00:14.5]} 63... Ra4+ {[%clk 0:00:24.4]}
64. Kf5 {[%clk 0:00:14.4]} 64... Ra5+ {[%clk 0:00:25.8]} 65. Kg6 {[%clk
0:00:15.7]} 65... Ke6 {[%clk 0:00:27.1]} 66. Re3+ {[%clk 0:00:16.9]} 66... Kd7
{[%clk 0:00:28.7]} 67. Kf7 {[%clk 0:00:15.8]} 67... Ra7 {[%clk 0:00:28.8]} 68.
Re7+ {[%clk 0:00:16.6]} 1-0

[Event "*** Titled Tuesday Blitz"]
[Site "Chess.com"]
[Date "2019.03.05"]
[Round "10"]
[White "Swarnapuri"]
[Black "Gentlejimmy7"]
[Result "0-1"]
[WhiteElo "2695"]
[BlackElo "2431"]
[TimeControl "180+2"]
[EndTime "15:31:25 PST"]
[Termination "Gentlejimmy7 won by resignation"]

1. d4 {[%clk 0:03:01.9]} 1... Nf6 {[%clk 0:03:00.7]} 2. Bf4 {[%clk 0:03:03.4]}
2... g6 {[%clk 0:02:59.3]} 3. e3 {[%clk 0:03:05]} 3... Bg7 {[%clk 0:03:00.7]} 4.
Nf3 {[%clk 0:03:06.3]} 4... O-O {[%clk 0:03:02.2]} 5. Be2 {[%clk 0:03:07.8]}
5... c5 {[%clk 0:03:02.3]} 6. O-O {[%clk 0:03:08.2]} 6... d5 {[%clk 0:03:02.6]}
7. c3 {[%clk 0:03:08.7]} 7... Nbd7 {[%clk 0:03:02.4]} 8. h3 {[%clk 0:03:08.7]}
8... b6 {[%clk 0:03:03.9]} 9. Nbd2 {[%clk 0:03:08.1]} 9... Bb7 {[%clk
0:03:05.5]} 10. a4 {[%clk 0:03:08.6]} 10... a6 {[%clk 0:03:06]} 11. Ne5 {[%clk
0:03:08.1]} 11... Rc8 {[%clk 0:03:02.9]} 12. Bd3 {[%clk 0:03:06.2]} 12... Ne4
{[%clk 0:02:59.3]} 13. Ndf3 {[%clk 0:02:56.5]} 13... Ndf6 {[%clk 0:02:53.4]} 14.
Bh2 {[%clk 0:02:40.9]} 14... e6 {[%clk 0:02:53.4]} 15. Qe2 {[%clk 0:02:38.5]}
15... Qe7 {[%clk 0:02:53]} 16. Bxa6 {[%clk 0:02:39.2]} 16... c4 {[%clk
0:02:47.7]} 17. Bxb7 {[%clk 0:02:35.9]} 17... Qxb7 {[%clk 0:02:49.2]} 18. Nd2
{[%clk 0:02:37.7]} 18... Nxd2 {[%clk 0:02:43.6]} 19. Qxd2 {[%clk 0:02:38.6]}
19... Ra8 {[%clk 0:02:45.2]} 20. b3 {[%clk 0:02:31.7]} 20... Ne4 {[%clk
0:02:18.7]} 21. Qb2 {[%clk 0:02:31.5]} 21... cxb3 {[%clk 0:02:20.1]} 22. f3
{[%clk 0:02:23.9]} 22... Nd6 {[%clk 0:02:20.6]} 23. Qxb3 {[%clk 0:02:24.8]}
23... Bxe5 {[%clk 0:02:18.1]} 24. Bxe5 {[%clk 0:02:24.5]} 24... Nc4 {[%clk
0:02:19.7]} 25. Bf4 {[%clk 0:02:26.1]} 25... Ra5 {[%clk 0:02:14.3]} 26. Rf2
{[%clk 0:02:19.9]} 26... Qc6 {[%clk 0:02:15.2]} 27. Rfa2 {[%clk 0:02:18.2]}
27... Rfa8 {[%clk 0:02:16]} 28. Kf2 {[%clk 0:02:14.7]} 28... Kg7 {[%clk
0:02:16]} 29. h4 {[%clk 0:02:12.8]} 29... h5 {[%clk 0:02:09.9]} 30. g4 {[%clk
0:02:11.1]} 30... hxg4 {[%clk 0:02:03.2]} 31. fxg4 {[%clk 0:02:13]} 31... Qd7
{[%clk 0:02:02.8]} 32. g5 {[%clk 0:01:59.2]} 32... Kg8 {[%clk 0:01:59.9]} 33.
Kg3 {[%clk 0:01:58.5]} 33... e5 {[%clk 0:01:29.1]} 34. dxe5 {[%clk 0:01:55.6]}
34... Qe6 {[%clk 0:01:27.8]} 35. Qb4 {[%clk 0:01:41.7]} 35... b5 {[%clk
0:01:16.9]} 36. Rf1 {[%clk 0:01:23.9]} 36... Rxa4 {[%clk 0:01:06.3]} 37. Rxa4
{[%clk 0:01:23]} 37... bxa4 {[%clk 0:01:05.4]} 38. Qb7 {[%clk 0:01:17.3]} 38...
Re8 {[%clk 0:00:56.2]} 39. Rd1 {[%clk 0:01:06.5]} 39... Nxe5 {[%clk 0:00:53.5]}
40. Qxd5 {[%clk 0:00:54.1]} 40... Qg4+ {[%clk 0:00:53.8]} 41. Kf2 {[%clk
0:00:52.2]} 41... Qxh4+ {[%clk 0:00:48.5]} 42. Kg1 {[%clk 0:00:48.4]} 42... Ng4
{[%clk 0:00:34.6]} 43. Qf3 {[%clk 0:00:46.2]} 43... Ne5 {[%clk 0:00:27.4]} 44.
Bxe5 {[%clk 0:00:43.6]} 44... Qxg5+ {[%clk 0:00:21.2]} 45. Qg3 {[%clk
0:00:14.7]} 45... Rxe5 {[%clk 0:00:21.3]} 46. Qxg5 {[%clk 0:00:15.8]} 46...
Rxg5+ {[%clk 0:00:22.3]} 47. Kf2 {[%clk 0:00:17.7]} 47... Ra5 {[%clk 0:00:23.6]}
48. Ra1 {[%clk 0:00:18.5]} 48... a3 {[%clk 0:00:25.1]} 49. c4 {[%clk 0:00:19.8]}
49... Kf8 {[%clk 0:00:24.4]} 50. Kf3 {[%clk 0:00:20.3]} 50... Ke7 {[%clk
0:00:25.3]} 51. Ke4 {[%clk 0:00:21.3]} 51... Kd6 {[%clk 0:00:26]} 52. Kd4 {[%clk
0:00:22.5]} 52... a2 {[%clk 0:00:27.2]} 53. e4 {[%clk 0:00:23]} 53... g5 {[%clk
0:00:27.6]} 54. e5+ {[%clk 0:00:24]} 54... Kc6 {[%clk 0:00:28]} 55. Kc3 {[%clk
0:00:21.4]} 55... g4 {[%clk 0:00:28.8]} 56. Kd4 {[%clk 0:00:21.3]} 56... g3
{[%clk 0:00:28.4]} 57. Ke3 {[%clk 0:00:22.7]} 57... Kc5 {[%clk 0:00:29.6]} 58.
Kf3 {[%clk 0:00:23.7]} 58... Kxc4 {[%clk 0:00:29.5]} 59. Kxg3 {[%clk 0:00:25.3]}
59... Kb3 {[%clk 0:00:30.7]} 60. Kf4 {[%clk 0:00:26.7]} 60... Kb2 {[%clk
0:00:30.6]} 61. Rh1 {[%clk 0:00:28.3]} 61... a1=Q {[%clk 0:00:31.1]} 62. Rxa1
{[%clk 0:00:29.7]} 62... Kxa1 {[%clk 0:00:32.3]} 63. Kf5 {[%clk 0:00:31.6]}
63... Ra7 {[%clk 0:00:33.5]} 64. Kf6 {[%clk 0:00:33.5]} 64... Kb2 {[%clk
0:00:34.7]} 65. e6 {[%clk 0:00:35.2]} 65... fxe6 {[%clk 0:00:34.4]} 66. Kxe6
{[%clk 0:00:37]} 66... Kc3 {[%clk 0:00:35.6]} 0-1

[Event "*** Titled Tuesday Blitz"]
[Site "Chess.com"]
[Date "2019.03.05"]
[Round "10"]
[White "GadimbayliA"]
[Black "mouseWLZ"]
[Result "1-0"]
[WhiteElo "2838"]
[BlackElo "2536"]
[TimeControl "180+2"]
[EndTime "15:31:33 PST"]
[Termination "GadimbayliA won by resignation"]

1. e4 {[%clk 0:03:00.1]} 1... e5 {[%clk 0:02:59.2]} 2. Nf3 {[%clk 0:03:00.8]}
2... Nc6 {[%clk 0:03:00.2]} 3. Nc3 {[%clk 0:03:02.4]} 3... Nf6 {[%clk
0:03:00.8]} 4. d4 {[%clk 0:03:04]} 4... exd4 {[%clk 0:02:59.9]} 5. Nxd4 {[%clk
0:03:05.9]} 5... Bb4 {[%clk 0:02:52.5]} 6. Nxc6 {[%clk 0:03:07]} 6... bxc6
{[%clk 0:02:52.8]} 7. Bd3 {[%clk 0:03:07.7]} 7... O-O {[%clk 0:02:53]} 8. O-O
{[%clk 0:03:08.1]} 8... d5 {[%clk 0:02:53.9]} 9. exd5 {[%clk 0:03:10]} 9... cxd5
{[%clk 0:02:54.9]} 10. Qf3 {[%clk 0:03:11.6]} 10... c6 {[%clk 0:02:47.9]} 11.
Bg5 {[%clk 0:03:12.1]} 11... h6 {[%clk 0:02:44.8]} 12. Bxf6 {[%clk 0:03:13]}
12... Qxf6 {[%clk 0:02:45.5]} 13. Qxf6 {[%clk 0:03:14.6]} 13... gxf6 {[%clk
0:02:47.4]} 14. Ne2 {[%clk 0:03:16.2]} 14... Bc5 {[%clk 0:02:42.5]} 15. Rad1
{[%clk 0:03:14.7]} 15... Bg4 {[%clk 0:02:42.8]} 16. h3 {[%clk 0:03:11.8]} 16...
Bxe2 {[%clk 0:02:43.6]} 17. Bxe2 {[%clk 0:03:13.7]} 17... Rab8 {[%clk
0:02:44.9]} 18. b3 {[%clk 0:03:14]} 18... Rfe8 {[%clk 0:02:46.3]} 19. Bf3 {[%clk
0:03:14.8]} 19... a5 {[%clk 0:02:45.3]} 20. Rc1 {[%clk 0:03:11.8]} 20... a4
{[%clk 0:02:44.5]} 21. c4 {[%clk 0:03:08.8]} 21... Ba3 {[%clk 0:02:38.6]} 22.
Rc3 {[%clk 0:02:57.9]} 22... d4 {[%clk 0:02:37.7]} 23. Rd3 {[%clk 0:02:59]}
23... c5 {[%clk 0:02:38.8]} 24. Rb1 {[%clk 0:02:53.8]} 24... Bb4 {[%clk
0:02:31.7]} 25. bxa4 {[%clk 0:02:49.5]} 25... Kf8 {[%clk 0:02:12.5]} 26. Rdb3
{[%clk 0:02:30.3]} 26... Rbd8 {[%clk 0:02:09.5]} 27. Rd1 {[%clk 0:02:27.6]}
27... Re1+ {[%clk 0:01:52.6]} 28. Rxe1 {[%clk 0:02:28.2]} 28... Bxe1 {[%clk
0:01:54.5]} 29. Kf1 {[%clk 0:02:27.7]} 29... Bc3 {[%clk 0:01:55.7]} 30. Be4
{[%clk 0:02:19.4]} 30... Re8 {[%clk 0:01:45.1]} 31. f3 {[%clk 0:02:19.9]} 31...
f5 {[%clk 0:01:46.6]} 32. Bxf5 {[%clk 0:02:20.7]} 32... Re1+ {[%clk 0:01:48.1]}
33. Kf2 {[%clk 0:02:21.4]} 33... Ra1 {[%clk 0:01:47.2]} 34. Bb1 {[%clk
0:02:22.5]} 34... d3 {[%clk 0:01:22.6]} 35. Rxc3 {[%clk 0:02:22]} 35... Rxb1
{[%clk 0:01:20.2]} 36. Rxd3 {[%clk 0:02:23.1]} 36... Rb2+ {[%clk 0:01:21.5]} 37.
Kg3 {[%clk 0:02:24.3]} 37... Rxa2 {[%clk 0:01:23.1]} 38. Rd5 {[%clk 0:02:25.9]}
38... Rxa4 {[%clk 0:01:24.6]} 39. Rxc5 {[%clk 0:02:27.8]} 39... Kg7 {[%clk
0:01:26.2]} 40. Rc6 {[%clk 0:02:29]} 40... Ra2 {[%clk 0:01:26.3]} 41. Rc8 {[%clk
0:02:25.3]} 41... Rc2 {[%clk 0:01:27.2]} 42. c5 {[%clk 0:02:26.6]} 42... h5
{[%clk 0:01:28.1]} 43. h4 {[%clk 0:02:25.7]} 43... Rc4 {[%clk 0:01:28.6]} 44.
Kh3 {[%clk 0:02:25.1]} 44... Rc3 {[%clk 0:01:29.2]} 45. c6 {[%clk 0:02:26.1]}
45... Kh7 {[%clk 0:01:28.6]} 46. c7 {[%clk 0:02:27]} 46... Kg7 {[%clk 0:01:30]}
47. Kg3 {[%clk 0:02:28.3]} 47... Rc4 {[%clk 0:01:29.5]} 48. Kf2 {[%clk
0:02:29.5]} 48... Kh7 {[%clk 0:01:24.2]} 49. Ke3 {[%clk 0:02:30.4]} 49... Kg7
{[%clk 0:01:25.7]} 50. Kd3 {[%clk 0:02:31.6]} 50... Rc1 {[%clk 0:01:27]} 51. g4
{[%clk 0:02:31.1]} 51... hxg4 {[%clk 0:01:25.9]} 52. fxg4 {[%clk 0:02:33]} 52...
Kh7 {[%clk 0:01:25.9]} 53. Kd4 {[%clk 0:02:33.4]} 53... Kg7 {[%clk 0:01:26.8]}
54. h5 {[%clk 0:02:33.5]} 54... Rd1+ {[%clk 0:01:25]} 55. Ke5 {[%clk 0:02:32.8]}
55... Re1+ {[%clk 0:01:26.3]} 56. Kf5 {[%clk 0:02:34.1]} 56... Rf1+ {[%clk
0:01:25.7]} 57. Kg5 {[%clk 0:02:35.3]} 57... f6+ {[%clk 0:01:20.2]} 58. Kh4
{[%clk 0:02:36.5]} 58... Rc1 {[%clk 0:01:20.2]} 59. h6+ {[%clk 0:02:34.2]} 59...
Kh7 {[%clk 0:01:20.6]} 60. Kg3 {[%clk 0:02:35.5]} 60... Rc4 {[%clk 0:01:14.4]}
61. Kf3 {[%clk 0:02:36.3]} 61... Rc1 {[%clk 0:01:11.3]} 62. Kf4 {[%clk
0:02:36.3]} 62... Rf1+ {[%clk 0:01:11.8]} 63. Ke4 {[%clk 0:02:37.6]} 63... Rc1
{[%clk 0:01:13]} 64. Kf5 {[%clk 0:02:38.6]} 64... Rc6 {[%clk 0:01:14.3]} 65. Ke4
{[%clk 0:02:39.7]} 65... Rc5 {[%clk 0:01:07.2]} 66. Kd4 {[%clk 0:02:40.9]} 66...
Rc1 {[%clk 0:01:06.5]} 67. Kd5 {[%clk 0:02:42.2]} 67... Rd1+ {[%clk 0:01:03.9]}
68. Ke6 {[%clk 0:02:43]} 68... Re1+ {[%clk 0:01:05.3]} 69. Kxf6 {[%clk
0:02:42.6]} 69... Rf1+ {[%clk 0:01:06.7]} 70. Ke5 {[%clk 0:02:39.3]} 70... Re1+
{[%clk 0:01:08]} 71. Kf4 {[%clk 0:02:39.2]} 71... Rf1+ {[%clk 0:01:08.4]} 72.
Kg3 {[%clk 0:02:39.5]} 72... Rg1+ {[%clk 0:01:08.1]} 73. Kf2 {[%clk 0:02:39.7]}
73... Rc1 {[%clk 0:01:08.9]} 74. g5 {[%clk 0:02:41.1]} 74... Kg6 {[%clk
0:00:48.8]} 75. Rg8+ {[%clk 0:02:38.9]} 75... Kh7 {[%clk 0:00:50.3]} 76. Rc8
{[%clk 0:02:25.4]} 76... Kg6 {[%clk 0:00:46.3]} 77. Ke2 {[%clk 0:02:26.6]} 77...
Rc4 {[%clk 0:00:32.2]} 78. Kd3 {[%clk 0:02:27.2]} 78... Rc1 {[%clk 0:00:32.7]}
79. Kd4 {[%clk 0:02:17.4]} 79... Rd1+ {[%clk 0:00:33.3]} 80. Ke5 {[%clk
0:02:18.2]} 80... Re1+ {[%clk 0:00:34.7]} 81. Kd6 {[%clk 0:02:19.5]} 81... Rd1+
{[%clk 0:00:35]} 82. Ke7 {[%clk 0:02:20.8]} 82... Re1+ {[%clk 0:00:21.7]} 83.
Kf8 {[%clk 0:02:19.7]} 83... Kh7 {[%clk 0:00:06.1]} 84. Re8 {[%clk 0:02:16.9]}
84... Rf1+ {[%clk 0:00:07.5]} 85. Ke7 {[%clk 0:02:18]} 85... Rf7+ {[%clk
0:00:09.1]} 86. Kd8 {[%clk 0:02:19.4]} 86... Rf2 {[%clk 0:00:04.2]} 87. c8=Q
{[%clk 0:02:16.1]} 87... Rd2+ {[%clk 0:00:05.7]} 88. Qd7+ {[%clk 0:02:17.2]} 1-0

[Event "*** Titled Tuesday Blitz"]
[Site "Chess.com"]
[Date "2019.03.05"]
[Round "10"]
[White "Witik"]
[Black "GeorgMeier"]
[Result "1-0"]
[WhiteElo "2712"]
[BlackElo "2818"]
[TimeControl "180+2"]
[EndTime "15:31:35 PST"]
[Termination "Witik won by resignation"]

1. d4 {[%clk 0:03:01.9]} 1... e6 {[%clk 0:03:01.9]} 2. c4 {[%clk 0:03:02.3]}
2... Nf6 {[%clk 0:03:03.8]} 3. Nf3 {[%clk 0:03:03.3]} 3... d5 {[%clk 0:03:05.7]}
4. Nc3 {[%clk 0:03:04.4]} 4... Be7 {[%clk 0:03:06.7]} 5. Bf4 {[%clk 0:03:05.1]}
5... O-O {[%clk 0:03:08]} 6. e3 {[%clk 0:03:06.6]} 6... b6 {[%clk 0:03:08.1]} 7.
cxd5 {[%clk 0:03:07.2]} 7... Nxd5 {[%clk 0:03:08.5]} 8. Bg3 {[%clk 0:03:08]}
8... Bb7 {[%clk 0:03:08.4]} 9. Bd3 {[%clk 0:03:08.7]} 9... c5 {[%clk 0:03:09.5]}
10. O-O {[%clk 0:03:09.4]} 10... Nd7 {[%clk 0:03:10.6]} 11. Rc1 {[%clk
0:03:07.7]} 11... cxd4 {[%clk 0:03:10.2]} 12. exd4 {[%clk 0:03:08.7]} 12... N7f6
{[%clk 0:03:10.9]} 13. Re1 {[%clk 0:03:08.9]} 13... Rc8 {[%clk 0:03:11.9]} 14.
Ne5 {[%clk 0:02:59.1]} 14... Nxc3 {[%clk 0:03:12.4]} 15. bxc3 {[%clk 0:03:00.1]}
15... Qd5 {[%clk 0:03:13.7]} 16. Bf1 {[%clk 0:02:58]} 16... Rfd8 {[%clk
0:03:09.6]} 17. Qb3 {[%clk 0:02:54.5]} 17... Nh5 {[%clk 0:02:51.2]} 18. Qa4
{[%clk 0:02:37.7]} 18... Nxg3 {[%clk 0:02:48.7]} 19. hxg3 {[%clk 0:02:39.6]}
19... a6 {[%clk 0:02:46.5]} 20. Qd1 {[%clk 0:02:12]} 20... b5 {[%clk 0:02:35.3]}
21. Qh5 {[%clk 0:02:01.2]} 21... g6 {[%clk 0:02:36.1]} 22. Qh3 {[%clk
0:02:01.1]} 22... Bg5 {[%clk 0:02:06.8]} 23. Nxf7 {[%clk 0:02:00.3]} 23... Kxf7
{[%clk 0:02:01]} 24. Qxh7+ {[%clk 0:02:00.9]} 24... Kf8 {[%clk 0:01:50.1]} 25.
Re5 {[%clk 0:01:48.8]} 25... Bxc1 {[%clk 0:01:46.7]} 26. Rxd5 {[%clk 0:01:15.3]}
26... Bxd5 {[%clk 0:01:47.4]} 27. Bd3 {[%clk 0:01:14.1]} 27... Rb8 {[%clk
0:01:48.7]} 28. Bxg6 {[%clk 0:01:11.5]} 28... Rb7 {[%clk 0:01:49.5]} 29. Qh4
{[%clk 0:00:49.2]} 29... Rdd7 {[%clk 0:01:49.3]} 30. Qh8+ {[%clk 0:00:38.6]}
30... Ke7 {[%clk 0:01:48.2]} 31. Qg7+ {[%clk 0:00:39.1]} 31... Kd6 {[%clk
0:01:48]} 32. Qe5+ {[%clk 0:00:39.4]} 32... Kc6 {[%clk 0:01:48.4]} 33. Be8
{[%clk 0:00:40.3]} 33... Bd2 {[%clk 0:01:39.2]} 34. g4 {[%clk 0:00:26]} 34...
Kb6 {[%clk 0:01:13.3]} 35. Bxd7 {[%clk 0:00:26.7]} 35... Rxd7 {[%clk 0:01:14.2]}
36. g5 {[%clk 0:00:26.3]} 36... Ka5 {[%clk 0:00:51.6]} 37. g6 {[%clk 0:00:23.1]}
37... Bh6 {[%clk 0:00:49.4]} 38. Qe1 {[%clk 0:00:17.7]} 38... Ka4 {[%clk
0:00:45.5]} 39. Qd1+ {[%clk 0:00:18.6]} 39... Ka3 {[%clk 0:00:44.4]} 40. Qh5
{[%clk 0:00:18.7]} 40... Bg7 {[%clk 0:00:44.5]} 41. Qe2 {[%clk 0:00:09.7]} 41...
Bxa2 {[%clk 0:00:32.9]} 42. Qc2 {[%clk 0:00:10.8]} 42... a5 {[%clk 0:00:25.7]}
43. Qc1+ {[%clk 0:00:10.7]} 43... Ka4 {[%clk 0:00:26.8]} 44. Qb2 {[%clk
0:00:10.2]} 44... Bc4 {[%clk 0:00:22.1]} 45. Qa1+ {[%clk 0:00:11]} 45... Kb3
{[%clk 0:00:22.1]} 46. Qxa5 {[%clk 0:00:12.6]} 46... Kc2 {[%clk 0:00:19.9]} 47.
Qb4 {[%clk 0:00:12]} 47... Kd3 {[%clk 0:00:19.7]} 48. Qa5 {[%clk 0:00:11.6]}
48... Ke4 {[%clk 0:00:18.9]} 49. Qa8+ {[%clk 0:00:10.9]} 49... Kf5 {[%clk
0:00:19.6]} 50. Qe8 {[%clk 0:00:09.8]} 50... Ra7 {[%clk 0:00:20.1]} 51. f3
{[%clk 0:00:09.1]} 51... Kg5 {[%clk 0:00:19.5]} 52. Kh2 {[%clk 0:00:10.2]} 52...
Kh6 {[%clk 0:00:19.5]} 53. Kg3 {[%clk 0:00:10.8]} 53... Bd5 {[%clk 0:00:19.4]}
54. Kg4 {[%clk 0:00:11.1]} 54... Ra2 {[%clk 0:00:18.9]} 55. g3 {[%clk
0:00:12.2]} 55... Rf2 {[%clk 0:00:19.2]} 56. f4 {[%clk 0:00:12.9]} 56... Bf3+
{[%clk 0:00:20.2]} 57. Kh3 {[%clk 0:00:13.7]} 57... Be4 {[%clk 0:00:19]} 58.
Qxe6 {[%clk 0:00:14.4]} 58... Bxg6 {[%clk 0:00:19.3]} 59. Kg4 {[%clk 0:00:15.4]}
59... Kh7 {[%clk 0:00:19.8]} 60. Qd5 {[%clk 0:00:15.4]} 60... Rc2 {[%clk
0:00:19.5]} 61. f5 {[%clk 0:00:16.1]} 61... Be8 {[%clk 0:00:19.9]} 62. f6 {[%clk
0:00:16.2]} 62... Bxf6 {[%clk 0:00:13.1]} 63. Qf5+ {[%clk 0:00:17.7]} 63... Bg6
{[%clk 0:00:12]} 64. Qxf6 {[%clk 0:00:19.2]} 64... Rxc3 {[%clk 0:00:13.9]} 65.
d5 {[%clk 0:00:18.6]} 65... Rc4+ {[%clk 0:00:13.5]} 66. Kg5 {[%clk 0:00:20]}
66... Bd3 {[%clk 0:00:13.8]} 67. Qe7+ {[%clk 0:00:20.2]} 67... Kg8 {[%clk
0:00:13.4]} 68. Kf6 {[%clk 0:00:21.7]} 1-0